[Event "GER-ch Youth U12 2020"]
[Site "Willingen"]
[Date "2020.10.28"]
[Round "3.17"]
[White "Torosyan, Bagrat"]
[Black "Berresheim, Nils"]
[Result "0-1"]
[ECO "B94"]
[WhiteElo "1634"]
[BlackElo "1534"]
[Annotator "NA"]
[PlyCount "108"]
[EventDate "2020.10.27"]
[EventType "swiss"]
[EventRounds "7"]
[EventCountry "GER"]
[SourceTitle "playchess.com"]
[Source "ChessBase"]
[SourceQuality "1"]
[TimeControl "40/5400+30:1800+30"]

1. e4 {[%emt 0:00:00]} c5 {[%emt 0:00:00]} 2. Nf3 {[%emt 0:00:00]} d6 {[%emt 0:00:00]} 3. d4 {[%emt 0:00:00]} cxd4 {[%emt 0:00:06]} 4. Nxd4 {[%emt 0:00:00]} Nf6 {[%emt 0:00:26]} 5. Nc3 {[%emt 0:00:07]} a6 {[%emt 0:00:07]} 6. Bg5 {[%emt 0:00:12]} Nbd7 {[%emt 0:00:36]} 7. Qe2 {[%emt 0:00:12]} b5 {[%emt 0:01:14]} 8. O-O-O {[%emt 0:04:11]} Bb7 {[%emt 0:01:51]} 9. f4 {[%emt 0:06:15]} h6 {[%emt 0:03:32]} 10. Bh4 {[%emt 0:04:45]} Rc8 {[%emt 0:03:48]} 11. e5 {[%emt 0:08:03]} dxe5 {[%emt 0:06:24]} 12. fxe5 {[%emt 0:00:43]} Nd5 {[%emt 0:01:53]} 13. Nxd5 {[%emt 0:01:24]} Bxd5 {[%emt 0:01:32]} 14. Nf5 {[%emt 0:06:00]} g5 {[%emt 0:09:12]} 15. Rxd5 {[%emt 0:03:44]} e6 {[%emt 0:04:49]} 16. Nd6+ {[%emt 0:00:54]} Bxd6 {[%emt 0:00:32]} 17. Rxd6 {[%emt 0:00:12]} gxh4 {[%emt 0:01:31]} 18. Rxa6 {[%emt 0:10:00]} Rc5 {[%emt 0:02:48]} 19. Qf3 {[%emt 0:09:40]} O-O {[%emt 0:04:36]} 20. Be2 {[%emt 0:11:07]} Qc8 {[%emt 0:04:57]} 21. Ra3 {[%emt 0:05:12]} Rxc2+ {[%emt 0:02:46]} 22. Kb1 {[%emt 0:01:16]} Nxe5 {[%emt 0:01:21]} 23. Qe4 {[%emt 0:04:27]} Rc5 {[%emt 0:06:45]} 24. Qxh4 {[%emt 0:03:22]} Qd8 {[%emt 0:06:45]} 25. Rg3+ {[%emt 0:03:58]} Kh7 {[%emt 0:04:37]} 26. Qb4 {[%emt 0:02:28]} Qd5 {[%emt 0:02:49]} 27. Rd1 {[%emt 0:02:06]} Qc6 {[%emt 0:00:34]} 28. a3 {[%emt 0:03:42]} Rc8 {[%emt 0:01:44]} 29. Qf4 {[%emt 0:04:11]} f5 {[%emt 0:04:03]} 30. Rh3 {[%emt 0:01:51]} Nf7 {[%emt 0:03:18]} 31. Bf3 {[%emt 0:01:12]} Qc7 {[%emt 0:02:16]} 32. Qd2 {[%emt 0:02:42]} Rd8 {[%emt 0:01:51]} 33. Qe3 {[%emt 0:01:11]} Rxd1+ {[%emt 0:01:08]} 34. Bxd1 {[%emt 0:00:10]} Qd6 {[%emt 0:01:57]} 35. Bb3 {[%emt 0:00:47]} Re5 {[%emt 0:00:51]} 36. Qd3 {[%emt 0:00:38]} Re1+ {[%emt 0:03:07]} 37. Ka2 {[%emt 0:00:46]} Qc6 {[%emt 0:02:51]} 38. Qd2 {[%emt 0:00:44]} Rg1 {[%emt 0:00:56]} 39. Rg3 {[%emt 0:00:28]} Ng5 {[%emt 0:01:20]} 40. Qc2 {[%emt 0:00:43]} Qb6 {[%emt 0:04:49]} 41. Qd2 {[%emt 0:02:25]} Qc6 {[%emt 0:03:04]} 42. Qc2 {[%emt 0:03:36]} Qd6 {[%emt 0:03:55]} 43. Qf2 {[%emt 0:02:27]} Rc1 {[%emt 0:01:31]} 44. Bc2 {[%emt 0:03:56]} Qd5+ {[%emt 0:02:00]} 45. Bb3 {[%emt 0:01:27]} Qe4 {[%emt 0:02:27]} 46. Qa7+ {[%emt 0:02:55]} Kg6 {[%emt 0:01:31]} 47. a4 {[%emt 0:04:19]} b4 {[%emt 0:01:18]} 48. Bc2 {[%emt 0:04:09]} Qxc2 {[%emt 0:01:37]} 49. Qa6 {[%emt 0:00:41]} Qe4 {[%emt 0:03:30]} 50. h4 {[%emt 0:01:39]} Qd5+ {[%emt 0:01:20]} 51. Rb3 {[%emt 0:00:28]} Ne4 {[%emt 0:01:33]} 52. h5+ {[%emt 0:00:39]} Kf6 {[%emt 0:01:36]} 53. g4 {[%emt 0:00:39]} Qxb3+ {[%emt 0:00:28]} 54. Kxb3 {[%emt 0:00:11]} Nc5+ {[%emt 0:00:09]} 0-1

[Event "GER-ch Youth U12 2020"]
[Site "Willingen"]
[Date "2020.10.28"]
[Round "3.18"]
[White "Grabs, Peter"]
[Black "Cromm, Mika"]
[Result "1/2-1/2"]
[ECO "C68"]
[WhiteElo "1674"]
[BlackElo "1665"]
[Annotator "NA"]
[PlyCount "77"]
[EventDate "2020.10.27"]
[EventType "swiss"]
[EventRounds "7"]
[EventCountry "GER"]
[SourceTitle "playchess.com"]
[Source "ChessBase"]
[SourceQuality "1"]
[TimeControl "40/5400+30:1800+30"]

1. e4 {[%emt 0:00:00]} e5 {[%emt 0:00:00]} 2. Nf3 {[%emt 0:00:00]} Nc6 {[%emt 0:00:00]} 3. Bb5 {[%emt 0:00:00]} a6 {[%emt 0:00:00]} 4. Bxc6 {[%emt 0:00:00]} dxc6 {[%emt 0:00:01]} 5. Nc3 {[%emt 0:00:00]} f6 {[%emt 0:00:17]} 6. d4 {[%emt 0:00:00]} exd4 {[%emt 0:00:15]} 7. Qxd4 {[%emt 0:00:15]} Qxd4 {[%emt 0:00:19]} 8. Nxd4 {[%emt 0:00:05]} Bd7 {[%emt 0:00:15]} 9. f3 {[%emt 0:00:27]} O-O-O {[%emt 0:00:32]} 10. Be3 {[%emt 0:00:16]} Ne7 {[%emt 0:00:48]} 11. Kf2 {[%emt 0:00:24]} c5 {[%emt 0:01:16]} 12. Nde2 {[%emt 0:00:16]} b6 {[%emt 0:00:17]} 13. Rad1 {[%emt 0:00:47]} Ng6 {[%emt 0:03:37]} 14. Nd5 {[%emt 0:05:11]} Bd6 {[%emt 0:04:37]} 15. Nxb6+ {[%emt 0:00:51]} cxb6 {[%emt 0:02:33]} 16. Rxd6 {[%emt 0:04:17]} Kc7 {[%emt 0:00:51]} 17. Rhd1 {[%emt 0:00:06]} Bb5 {[%emt 0:01:37]} 18. Rxd8 {[%emt 0:01:54]} Rxd8 {[%emt 0:00:07]} 19. Rxd8 {[%emt 0:00:04]} Kxd8 {[%emt 0:00:08]} 20. Nc3 {[%emt 0:00:09]} Bc6 {[%emt 0:00:31]} 21. b4 {[%emt 0:01:12]} cxb4 {[%emt 0:00:53]} 22. Bxb6+ {[%emt 0:00:09]} Kd7 {[%emt 0:02:23]} 23. Ne2 {[%emt 0:00:11]} Ba4 {[%emt 0:00:48]} 24. Nd4 {[%emt 0:00:52]} Ne5 {[%emt 0:01:52]} 25. Ba5 {[%emt 0:02:31]} Nc6 {[%emt 0:01:14]} 26. Nxc6 {[%emt 0:01:12]} Kxc6 {[%emt 0:00:11]} 27. Bxb4 {[%emt 0:00:04]} Bxc2 {[%emt 0:00:08]} 28. Bc3 {[%emt 0:01:01]} Kd6 {[%emt 0:05:34]} 29. Ke3 {[%emt 0:00:12]} Ba4 {[%emt 0:00:31]} 30. f4 {[%emt 0:00:26]} Bc6 {[%emt 0:02:18]} 31. e5+ {[%emt 0:04:39]} fxe5 {[%emt 0:00:11]} 32. Bxe5+ {[%emt 0:00:29]} Ke6 {[%emt 0:00:19]} 33. Bxg7 {[%emt 0:01:04]} Bxg2 {[%emt 0:00:07]} 34. Kf2 {[%emt 0:00:52]} Be4 {[%emt 0:03:49]} 35. Kg3 {[%emt 0:02:20]} Bf5 {[%emt 0:01:45]} 36. Kh4 {[%emt 0:00:21]} Bg6 {[%emt 0:02:21]} 37. Kg5 {[%emt 0:00:13]} Bf5 {[%emt 0:01:44]} 38. h4 {[%emt 0:00:48]} Bg6 {[%emt 0:05:49]} 39. Be5 {[%emt 0:01:01]} 1/2-1/2

[Event "GER-ch Youth U12 2020"]
[Site "Willingen"]
[Date "2020.10.28"]
[Round "3.19"]
[White "Chugunov, Ivan"]
[Black "Werner, Florin"]
[Result "0-1"]
[ECO "C02"]
[WhiteElo "1552"]
[BlackElo "1481"]
[Annotator "NA"]
[PlyCount "64"]
[EventDate "2020.10.27"]
[EventType "swiss"]
[EventRounds "7"]
[EventCountry "GER"]
[SourceTitle "playchess.com"]
[Source "ChessBase"]
[SourceQuality "1"]
[TimeControl "40/5400+30:1800+30"]

1. e4 {[%emt 0:00:00]} e6 {[%emt 0:00:00]} 2. d4 {[%emt 0:00:00]} d5 {[%emt 0:00:00]} 3. e5 {[%emt 0:00:00]} c5 {[%emt 0:00:19]} 4. c3 {[%emt 0:00:12]} Qb6 {[%emt 0:00:21]} 5. Nf3 {[%emt 0:00:24]} Bd7 {[%emt 0:00:14]} 6. Bd3 {[%emt 0:01:03]} Bb5 {[%emt 0:00:07]} 7. Bc2 {[%emt 0:00:42]} Nc6 {[%emt 0:03:07]} 8. a4 {[%emt 0:01:26]} Ba6 {[%emt 0:00:07]} 9. Be3 {[%emt 0:02:28]} Qxb2 {[%emt 0:00:58]} 10. Nbd2 {[%emt 0:00:47]} Qxc3 {[%emt 0:00:22]} 11. dxc5 {[%emt 0:06:56]} Nxe5 {[%emt 0:06:58]} 12. Nxe5 {[%emt 0:02:40]} Qxe5 {[%emt 0:00:15]} 13. a5 {[%emt 0:01:37]} Rc8 {[%emt 0:04:09]} 14. Ba4+ {[%emt 0:00:35]} Kd8 {[%emt 0:00:09]} 15. Rc1 {[%emt 0:01:06]} Nf6 {[%emt 0:01:14]} 16. Nf3 {[%emt 0:00:29]} Qc7 {[%emt 0:00:52]} 17. Qd2 {[%emt 0:00:38]} Ne4 {[%emt 0:02:39]} 18. Qb4 {[%emt 0:09:03]} Bxc5 {[%emt 0:03:25]} 19. Bxc5 {[%emt 0:04:15]} Nxc5 {[%emt 0:00:44]} 20. Kd1 {[%emt 0:04:24]} Qd6 {[%emt 0:07:22]} 21. Ng5 {[%emt 0:03:55]} Ke7 {[%emt 0:00:15]} 22. Bc2 {[%emt 0:04:13]} h6 {[%emt 0:02:17]} 23. Nf3 {[%emt 0:00:27]} Rc7 {[%emt 0:05:17]} 24. Qh4+ {[%emt 0:01:26]} Kd7 {[%emt 0:01:06]} 25. Qh5 {[%emt 0:00:35]} Kc8 {[%emt 0:02:57]} 26. Re1 {[%emt 0:05:16]} Qf4 {[%emt 0:02:05]} 27. g3 {[%emt 0:01:49]} Qb4 {[%emt 0:01:57]} 28. Ra1 {[%emt 0:02:43]} Qb2 {[%emt 0:01:33]} 29. Rb1 {[%emt 0:01:58]} Qc3 {[%emt 0:00:15]} 30. Qg4 {[%emt 0:05:34]} Nd3 {[%emt 0:01:16]} 31. Bxd3 {[%emt 0:01:21]} Bxd3 {[%emt 0:00:54]} 32. Nd4 {[%emt 0:00:47]} Bc2+ {[%emt 0:00:33]} 0-1

[Event "GER-ch Youth U12 2020"]
[Site "Willingen"]
[Date "2020.10.28"]
[Round "3.20"]
[White "Schröder, Jan-Hendrik"]
[Black "Honisch, Alexander"]
[Result "0-1"]
[ECO "C55"]
[WhiteElo "1324"]
[BlackElo "1667"]
[Annotator "NA"]
[PlyCount "30"]
[EventDate "2020.10.27"]
[EventType "swiss"]
[EventRounds "7"]
[EventCountry "GER"]
[SourceTitle "playchess.com"]
[Source "ChessBase"]
[SourceQuality "1"]
[TimeControl "40/5400+30:1800+30"]

1. e4 {[%emt 0:00:00]} e5 {[%emt 0:00:03]} 2. d4 {[%emt 0:00:00]} exd4 {[%emt 0:00:34]} 3. Nf3 {[%emt 0:00:00]} Nc6 {[%emt 0:00:54]} 4. Bc4 {[%emt 0:00:00]} Nf6 {[%emt 0:01:00]} 5. e5 {[%emt 0:00:00]} d5 {[%emt 0:00:35]} 6. Bb5 {[%emt 0:00:03]} Ne4 {[%emt 0:00:25]} 7. Nxd4 {[%emt 0:00:06]} Bd7 {[%emt 0:00:24]} 8. Bxc6 {[%emt 0:00:09]} bxc6 {[%emt 0:00:07]} 9. f3 {[%emt 0:01:43]} Qh4+ {[%emt 0:02:12]} 10. Ke2 {[%emt 0:05:31]} Qf2+ {[%emt 0:05:01]} 11. Kd3 {[%emt 0:00:06]} Nc5+ {[%emt 0:05:09]} 12. Kc3 {[%emt 0:00:33]} Na4+ {[%emt 0:00:25]} 13. Kd3 {[%emt 0:00:45]} c5 {[%emt 0:00:28]} 14. c4 {[%emt 0:02:59]} cxd4 {[%emt 0:01:15]} 15. b4 {[%emt 0:01:44]} Bf5# 0-1

[Event "GER-ch Youth U12 2020"]
[Site "Willingen"]
[Date "2020.10.28"]
[Round "3.21"]
[White "Möller, Maurin"]
[Black "Dorendorf, Mika"]
[Result "1-0"]
[ECO "B23"]
[WhiteElo "1645"]
[BlackElo "1462"]
[Annotator "NA"]
[PlyCount "83"]
[EventDate "2020.10.27"]
[EventType "swiss"]
[EventRounds "7"]
[EventCountry "GER"]
[SourceTitle "playchess.com"]
[Source "ChessBase"]
[SourceQuality "1"]
[TimeControl "40/5400+30:1800+30"]

1. e4 {[%emt 0:00:00]} c5 {[%emt 0:00:00]} 2. Nc3 {[%emt 0:00:00]} e6 {[%emt 0:00:00]} 3. f4 {[%emt 0:00:00]} d5 {[%emt 0:00:48]} 4. Nf3 {[%emt 0:00:00]} Nc6 {[%emt 0:00:37]} 5. e5 {[%emt 0:00:04]} h5 {[%emt 0:00:15]} 6. h4 {[%emt 0:05:09]} Nh6 {[%emt 0:04:14]} 7. g3 {[%emt 0:03:20]} Nf5 {[%emt 0:01:23]} 8. Kf2 {[%emt 0:00:18]} c4 {[%emt 0:02:20]} 9. d3 {[%emt 0:01:19]} Qb6+ {[%emt 0:01:21]} 10. Kg2 {[%emt 0:00:10]} cxd3 {[%emt 0:16:38]} 11. Bxd3 {[%emt 0:00:21]} g6 {[%emt 0:03:43]} 12. Re1 {[%emt 0:02:37]} a6 {[%emt 0:01:19]} 13. a3 {[%emt 0:01:08]} Qa7 {[%emt 0:00:33]} 14. Na4 {[%emt 0:10:10]} b5 {[%emt 0:01:11]} 15. Bxf5 {[%emt 0:00:48]} gxf5 {[%emt 0:01:31]} 16. Nc3 {[%emt 0:02:18]} Bc5 {[%emt 0:01:31]} 17. b4 {[%emt 0:03:38]} Bb6 {[%emt 0:01:40]} 18. a4 {[%emt 0:00:33]} bxa4 {[%emt 0:01:32]} 19. b5 {[%emt 0:01:22]} Ba5 {[%emt 0:03:00]} 20. Bd2 {[%emt 0:11:54]} Bxc3 {[%emt 0:00:43]} 21. Bxc3 {[%emt 0:00:24]} axb5 {[%emt 0:00:31]} 22. Bd4 {[%emt 0:00:35]} Qe7 {[%emt 0:01:51]} 23. c3 {[%emt 0:02:16]} Bd7 {[%emt 0:00:48]} 24. Re2 {[%emt 0:01:48]} Na5 {[%emt 0:02:10]} 25. Rb2 {[%emt 0:03:03]} Nc4 {[%emt 0:01:57]} 26. Rb4 {[%emt 0:00:18]} Bc6 {[%emt 0:00:48]} 27. Kh2 {[%emt 0:00:26]} a3 {[%emt 0:02:22]} 28. Nd2 {[%emt 0:04:34]} Nb2 {[%emt 0:04:14]} 29. Qc2 {[%emt 0:08:17]} O-O {[%emt 0:02:05]} 30. Nb3 {[%emt 0:00:54]} Rfc8 {[%emt 0:00:44]} 31. Bc5 {[%emt 0:01:34]} Qb7 {[%emt 0:01:06]} 32. Qe2 {[%emt 0:02:21]} f6 {[%emt 0:01:51]} 33. exf6 {[%emt 0:00:53]} Qf7 {[%emt 0:00:24]} 34. Nd4 {[%emt 0:01:44]} Bd7 {[%emt 0:01:34]} 35. Be7 {[%emt 0:01:38]} Rc4 {[%emt 0:04:20]} 36. Rxb2 {[%emt 0:00:58]} Kh7 {[%emt 0:00:54]} 37. Rb3 {[%emt 0:00:53]} b4 {[%emt 0:00:56]} 38. Nf3 {[%emt 0:00:12]} Qe8 {[%emt 0:00:28]} 39. Ne5 {[%emt 0:00:42]} Bb5 {[%emt 0:00:59]} 40. f7 {[%emt 0:00:30]} Qxe7 {[%emt 0:00:21]} 41. Qxh5+ {[%emt 0:30:20]} Kg7 {[%emt 0:30:03]} 42. Qg6+ {[%emt 0:00:14]} 1-0

[Event "GER-ch Youth U12 2020"]
[Site "Willingen"]
[Date "2020.10.28"]
[Round "3.22"]
[White "Guo, Jacob Tingshen"]
[Black "Isbilir, Levin"]
[Result "1/2-1/2"]
[ECO "D37"]
[WhiteElo "1551"]
[BlackElo "1233"]
[Annotator "NA"]
[PlyCount "66"]
[EventDate "2020.10.27"]
[EventType "swiss"]
[EventRounds "7"]
[EventCountry "GER"]
[SourceTitle "playchess.com"]
[Source "ChessBase"]
[SourceQuality "1"]
[TimeControl "40/5400+30:1800+30"]

1. d4 {[%emt 0:00:00]} d5 {[%emt 0:00:00]} 2. c4 {[%emt 0:00:00]} e6 {[%emt 0:00:00]} 3. Nc3 {[%emt 0:00:00]} Nf6 {[%emt 0:00:00]} 4. Nf3 {[%emt 0:00:07]} Be7 {[%emt 0:00:00]} 5. Bf4 {[%emt 0:01:25]} Nbd7 {[%emt 0:00:27]} 6. cxd5 {[%emt 0:01:28]} exd5 {[%emt 0:00:25]} 7. h3 {[%emt 0:00:45]} c6 {[%emt 0:03:31]} 8. e3 {[%emt 0:00:43]} Ne4 {[%emt 0:04:36]} 9. Nxe4 {[%emt 0:06:35]} dxe4 {[%emt 0:00:44]} 10. Nd2 {[%emt 0:00:55]} Nf6 {[%emt 0:06:39]} 11. Bc4 {[%emt 0:04:32]} O-O {[%emt 0:01:45]} 12. Qc2 {[%emt 0:02:54]} Re8 {[%emt 0:01:19]} 13. O-O {[%emt 0:02:52]} Bb4 {[%emt 0:15:23]} 14. Bg5 {[%emt 0:07:54]} Bxd2 {[%emt 0:01:50]} 15. Qxd2 {[%emt 0:00:43]} Be6 {[%emt 0:01:14]} 16. Bxe6 {[%emt 0:12:35]} Rxe6 {[%emt 0:00:15]} 17. Rad1 {[%emt 0:01:59]} Qd5 {[%emt 0:01:09]} 18. Bxf6 {[%emt 0:04:23]} Rxf6 {[%emt 0:00:09]} 19. b3 {[%emt 0:02:14]} Rg6 {[%emt 0:05:20]} 20. Qe2 {[%emt 0:06:13]} Re8 {[%emt 0:20:14]} 21. Rc1 {[%emt 0:06:58]} Ree6 {[%emt 0:09:18]} 22. f4 {[%emt 0:09:02]} exf3 {[%emt 0:12:09]} 23. Qxf3 {[%emt 0:03:55]} Qd7 {[%emt 0:03:37]} 24. d5 {[%emt 0:05:55]} Ref6 {[%emt 0:01:44]} 25. dxc6 {[%emt 0:07:51]} Rxc6 {[%emt 0:04:39]} 26. Rxc6 {[%emt 0:03:50]} Rxc6 {[%emt 0:00:06]} 27. Rd1 {[%emt 0:00:20]} Qe7 {[%emt 0:02:31]} 28. Qf4 {[%emt 0:01:52]} h6 {[%emt 0:01:06]} 29. Rd2 {[%emt 0:01:37]} a6 {[%emt 0:00:58]} 30. Qd4 {[%emt 0:01:05]} Kh7 {[%emt 0:00:31]} 31. Qd3+ {[%emt 0:01:21]} g6 {[%emt 0:00:19]} 32. Qd4 {[%emt 0:00:53]} Rc1+ {[%emt 0:01:58]} 33. Kf2 {[%emt 0:00:49]} Rc6 {[%emt 0:01:09]} 1/2-1/2

[Event "GER-ch Youth U12 2020"]
[Site "Willingen"]
[Date "2020.10.28"]
[Round "3.23"]
[White "Schreidl, Michael"]
[Black "Leubner, Paul Damdin"]
[Result "1-0"]
[ECO "B90"]
[WhiteElo "1640"]
[BlackElo "1409"]
[Annotator "NA"]
[PlyCount "111"]
[EventDate "2020.10.27"]
[EventType "swiss"]
[EventRounds "7"]
[EventCountry "GER"]
[SourceTitle "playchess.com"]
[Source "ChessBase"]
[SourceQuality "1"]
[TimeControl "40/5400+30:1800+30"]

1. e4 {[%emt 0:00:00]} c5 {[%emt 0:00:00]} 2. Nf3 {[%emt 0:00:00]} d6 {[%emt 0:00:00]} 3. d4 {[%emt 0:00:00]} cxd4 {[%emt 0:00:00]} 4. Nxd4 {[%emt 0:00:00]} Nf6 {[%emt 0:00:20]} 5. Nc3 {[%emt 0:00:00]} a6 {[%emt 0:00:08]} 6. f3 {[%emt 0:00:00]} e5 {[%emt 0:00:16]} 7. Nb3 {[%emt 0:00:01]} Be6 {[%emt 0:00:17]} 8. Be3 {[%emt 0:00:04]} Be7 {[%emt 0:00:20]} 9. Qd2 {[%emt 0:00:07]} h5 {[%emt 0:00:33]} 10. O-O-O {[%emt 0:02:56]} Nbd7 {[%emt 0:00:23]} 11. Nd5 {[%emt 0:01:20]} Bxd5 {[%emt 0:00:39]} 12. exd5 {[%emt 0:00:41]} b5 {[%emt 0:04:41]} 13. Kb1 {[%emt 0:05:05]} Rc8 {[%emt 0:03:38]} 14. Be2 {[%emt 0:04:05]} Nb6 {[%emt 0:03:14]} 15. Bxb6 {[%emt 0:01:22]} Qxb6 {[%emt 0:02:32]} 16. Qa5 {[%emt 0:08:25]} Qxa5 {[%emt 0:04:32]} 17. Nxa5 {[%emt 0:00:20]} O-O {[%emt 0:01:01]} 18. Nc6 {[%emt 0:01:26]} Nxd5 {[%emt 0:02:35]} 19. Nxe7+ {[%emt 0:00:12]} Nxe7 {[%emt 0:00:38]} 20. Rxd6 {[%emt 0:01:03]} Nc6 {[%emt 0:02:53]} 21. Rhd1 {[%emt 0:06:49]} Rfd8 {[%emt 0:03:48]} 22. Rxd8+ {[%emt 0:01:18]} Rxd8 {[%emt 0:01:52]} 23. Rxd8+ {[%emt 0:00:06]} Nxd8 {[%emt 0:00:06]} 24. a4 {[%emt 0:00:46]} bxa4 {[%emt 0:05:13]} 25. Bxa6 {[%emt 0:00:14]} f5 {[%emt 0:00:54]} 26. Kc1 {[%emt 0:00:39]} Kf7 {[%emt 0:02:39]} 27. Kd2 {[%emt 0:00:17]} Ne6 {[%emt 0:03:41]} 28. Bc4 {[%emt 0:00:36]} g5 {[%emt 0:01:55]} 29. Ke3 {[%emt 0:02:37]} Ke7 {[%emt 0:01:56]} 30. Bb5 {[%emt 0:00:51]} Nc5 {[%emt 0:01:13]} 31. Bc6 {[%emt 0:05:44]} Kd6 {[%emt 0:03:04]} 32. Be8 {[%emt 0:01:37]} h4 {[%emt 0:01:16]} 33. Bf7 {[%emt 0:01:28]} f4+ {[%emt 0:10:03]} 34. Kd2 {[%emt 0:00:27]} e4 {[%emt 0:05:41]} 35. fxe4 {[%emt 0:00:24]} Nxe4+ {[%emt 0:00:41]} 36. Ke2 {[%emt 0:03:10]} Ke5 {[%emt 0:04:40]} 37. Be8 {[%emt 0:00:45]} Nc5 {[%emt 0:01:49]} 38. c3 {[%emt 0:02:49]} Kf5 {[%emt 0:05:10]} 39. Bc6 {[%emt 0:03:59]} g4 {[%emt 0:03:41]} 40. Ba8 {[%emt 0:03:15]} h3 {[%emt 0:06:44]} 41. gxh3 {[%emt 0:33:54]} gxh3 {[%emt 0:32:13]} 42. Kf3 {[%emt 0:07:26]} Kg5 {[%emt 0:04:42]} 43. Bc6 {[%emt 0:01:05]} Kf5 {[%emt 0:01:59]} 44. Bb5 {[%emt 0:01:07]} Kg5 {[%emt 0:01:53]} 45. Bf1 {[%emt 0:02:41]} Kf5 {[%emt 0:02:11]} 46. Bxh3+ {[%emt 0:00:28]} Kg5 {[%emt 0:00:27]} 47. Bf1 {[%emt 0:00:20]} Nb3 {[%emt 0:02:50]} 48. h4+ {[%emt 0:01:44]} Kxh4 {[%emt 0:00:46]} 49. Kxf4 {[%emt 0:00:05]} Kh5 {[%emt 0:00:39]} 50. Bb5 {[%emt 0:00:17]} Nc5 {[%emt 0:00:56]} 51. Ke5 {[%emt 0:00:42]} Kg5 {[%emt 0:01:16]} 52. Kd5 {[%emt 0:00:26]} Nb7 {[%emt 0:00:24]} 53. Bxa4 {[%emt 0:00:43]} Kf6 {[%emt 0:00:00]} 54. b4 {[%emt 0:00:00]} Ke7 {[%emt 0:00:00]} 55. c4 {[%emt 0:00:00]} Kd8 {[%emt 0:00:00]} 56. Bc6 {[%emt 0:00:00]} 1-0

[Event "GER-ch Youth U12 2020"]
[Site "Willingen"]
[Date "2020.10.28"]
[Round "3.24"]
[White "Stadelmann, Constantin"]
[Black "Huber, Benedikt"]
[Result "0-1"]
[ECO "D04"]
[WhiteElo "1366"]
[BlackElo "1725"]
[Annotator "NA"]
[PlyCount "56"]
[EventDate "2020.10.27"]
[EventType "swiss"]
[EventRounds "7"]
[EventCountry "GER"]
[SourceTitle "playchess.com"]
[Source "ChessBase"]
[SourceQuality "1"]
[TimeControl "40/5400+30:1800+30"]

1. d4 {[%emt 0:00:00]} d5 {[%emt 0:00:00]} 2. Nf3 {[%emt 0:00:00]} Nf6 {[%emt 0:00:00]} 3. e3 {[%emt 0:00:00]} c6 {[%emt 0:00:39]} 4. Bd3 {[%emt 0:00:10]} Bg4 {[%emt 0:00:19]} 5. c4 {[%emt 0:00:32]} e6 {[%emt 0:02:02]} 6. O-O {[%emt 0:01:46]} Bd6 {[%emt 0:02:25]} 7. b3 {[%emt 0:00:41]} Nbd7 {[%emt 0:00:38]} 8. Bb2 {[%emt 0:01:04]} O-O {[%emt 0:02:46]} 9. Nbd2 {[%emt 0:00:24]} Rc8 {[%emt 0:13:35]} 10. Qe1 {[%emt 0:02:28]} b6 {[%emt 0:11:24]} 11. Ne5 {[%emt 0:01:02]} Bh5 {[%emt 0:01:30]} 12. f4 {[%emt 0:00:15]} Bg6 {[%emt 0:02:42]} 13. f5 {[%emt 0:03:35]} exf5 {[%emt 0:02:11]} 14. Bxf5 {[%emt 0:02:44]} Bxf5 15. Rxf5 {[%emt 0:00:25]} Re8 {[%emt 0:09:48]} 16. g4 {[%emt 0:07:53]} g6 {[%emt 0:06:44]} 17. Rf3 {[%emt 0:01:07]} Nxe5 {[%emt 0:01:39]} 18. dxe5 {[%emt 0:00:50]} Bxe5 {[%emt 0:01:36]} 19. Bxe5 {[%emt 0:01:13]} Rxe5 {[%emt 0:00:45]} 20. Qf2 {[%emt 0:00:29]} Nxg4 {[%emt 0:09:52]} 21. Qg3 {[%emt 0:00:35]} Qg5 {[%emt 0:01:18]} 22. Raf1 {[%emt 0:05:14]} Nxe3 {[%emt 0:04:23]} 23. Rxf7 {[%emt 0:05:11]} Nxf1 {[%emt 0:00:48]} 24. Rxf1 {[%emt 0:05:00]} Qxg3+ {[%emt 0:00:07]} 25. hxg3 {[%emt 0:00:19]} Re2 {[%emt 0:00:32]} 26. Nf3 {[%emt 0:01:59]} dxc4 {[%emt 0:00:16]} 27. bxc4 {[%emt 0:00:23]} Rxa2 {[%emt 0:00:04]} 28. Re1 {[%emt 0:01:29]} b5 {[%emt 0:01:23]} 0-1